bitfinex-derivatives/quotes_ETHF0:USTF0_20220103
["timestamp","ask_amount","ask_price","bid_price","bid_amount"]
[1641235018906,0.5624998,3760.8,3760.7,0.98362971]
[1641235020209,0.7924908,3760.8,3760.7,0.98362971]
[1641235020810,1.5304908,3760.8,3760.7,0.98362971]
[1641235022812,3.5352808,3760.8,3760.7,0.98362971]
[1641235025613,5.02946022,3760.8,3760.7,0.98362971]
[1641235026914,3.02467022,3760.8,3760.7,0.98362971]
[1641235027416,5.02946022,3760.8,3760.7,0.98362971]
[1641235029221,5.02946022,3760.8,3760.7,2.971e-05]
[1641235029421,1.97479379,3760.7,3759.8,1.49660988]
[1641235029621,1.5,3760.0,3759.8,9.88e-06]
[1641235029821,0.229991,3759.9,3759.7,0.75034799]
[1641235030221,1.5,3759.8,3759.7,0.75034799]
[1641235030421,1.5,3759.8,3759.3,0.75830988]
[1641235030624,1.5,3759.5,3758.9,3.001038]
[1641235030826,1.5,3759.3,3758.9,3.001038]
[1641235031422,2.00479,3759.0,3758.6,1.17405879]
[1641235031622,2.70389,3759.0,3758.6,1.17405879]
[1641235034625,0.56299097,3758.9,3758.6,1.17405879]
[1641235034826,0.229991,3758.8,3758.6,1.17405879]
[1641235036028,1.5,3758.7,3757.0,5.429]
[1641235036226,1.5,3758.4,3757.0,5.429]
[1641235036926,1.5,3758.4,3756.6,1.5]
[1641235037328,31.5903,3758.9,3756.6,1.5]
[1641235037526,2.00479,3757.8,3756.9,2.00479]
[1641235037727,20.1603,3758.9,3757.4,1.5]
[1641235038026,20.1603,3758.9,3757.5,0.83864627]
[1641235038729,4.87030022,3759.3,3757.7,1.5]
[1641235038927,4.87030022,3759.3,3757.5,0.83864627]
[1641235039527,2.00479,3758.7,3757.8,2.00479]
[1641235040426,2.00479,3758.7,3757.9,0.128157]
[1641235041028,2.00479,3758.7,3757.9,0.826657]
[1641235042130,2.00479,3758.7,3757.9,0.6985]
[1641235044533,2.00479,3758.7,3757.8,2.00479]
[1641235044732,2.82869,3758.7,3757.8,2.00479]
[1641235045834,2.82869,3758.7,3757.5,0.83864627]
[1641235046137,1.33007907,3758.5,3757.5,0.83864627]
[1641235046636,1.5,3758.2,3757.5,0.83864627]
[1641235047437,12.93,3758.2,3757.5,0.83864627]
[1641235047637,2.00479,3757.7,3757.5,0.83864627]
[1641235047839,0.229991,3757.6,3757.5,0.83864627]
[1641235050438,15.918084,3757.6,3757.5,0.83864627]
[1641235050938,15.918084,3757.6,3757.5,0.45754627]
[1641235051639,17.922874,3757.6,3757.5,0.45754627]
[1641235052444,17.922874,3757.6,3756.9,1.25709412]
[1641235052643,20.73931655,3757.6,3756.9,1.25709412]
[1641235053243,9.30931655,3757.6,3756.9,1.25709412]
[1641235053443,6.262883,3757.6,3756.9,1.25709412]
[1641235053643,2.00479,3757.1,3756.9,1.25709412]
[1641235054842,0.229991,3757.0,3756.9,1.25709412]
[1641235055943,2.00479,3757.1,3756.9,1.25709412]
[1641235056152,0.229991,3757.0,3756.9,1.25709412]
[1641235056551,2.00479,3757.1,3756.9,1.25709412]
[1641235057053,0.229991,3757.0,3756.9,1.25709412]
[1641235061755,2.00479,3757.1,3756.9,1.25709412]
[1641235061957,0.229991,3757.0,3756.9,1.25709412]
[1641235062258,2.00479,3757.1,3756.9,1.25709412]
[1641235062957,0.229991,3757.0,3756.9,1.25709412]
[1641235063258,0.797491,3757.0,3756.9,1.25709412]
[1641235063958,2.297491,3757.0,3756.9,1.25709412]
[1641235064458,2.297491,3757.0,3756.9,2.06299938]
[1641235064658,3.62823205,3757.0,3756.9,2.06299938]
[1641235065259,2.297491,3757.0,3756.9,2.06299938]
[1641235065861,12.227491,3757.0,3756.9,2.06299938]
[1641235066260,12.227491,3757.0,3756.9,1.25709412]
[1641235066461,13.55823205,3757.0,3756.9,1.25709412]
[1641235066662,17.81700505,3757.0,3756.9,1.25709412]
[1641235067063,16.486264,3757.0,3756.4,20.9179]
[1641235067263,1.32834105,3756.6,3756.1,0.69713547]
[1641235067466,17.58701405,3757.0,3756.1,0.69713547]
[1641235067763,2.00479,3756.2,3756.1,0.69713547]
[1641235067964,2.59549,3756.2,3756.1,0.69713547]
[1641235070366,2.825481,3756.2,3756.1,0.69713547]
[1641235070566,2.59549,3756.2,3756.1,0.69713547]
[1641235071267,2.825481,3756.2,3756.1,0.69713547]
[1641235071468,2.59549,3756.2,3756.1,0.69713547]
[1641235072268,2.825481,3756.2,3756.1,0.69713547]
[1641235072969,2.59549,3756.2,3756.1,0.69713547]
[1641235074274,2.825481,3756.2,3756.1,0.69713547]
[1641235074473,2.59549,3756.2,3756.1,0.69713547]
[1641235075077,2.825481,3756.2,3756.1,0.69713547]
[1641235075874,4.830271,3756.2,3756.1,0.69713547]
[1641235089298,6.16124939,3756.2,3756.1,0.69713547]
[1641235091006,6.55384939,3756.2,3756.1,0.69713547]
[1641235091805,6.55384939,3756.2,3755.6,22.243027]
[1641235092006,6.55384939,3756.2,3755.6,1.134327]
[1641235092207,2.00479,3755.7,3755.6,1.134327]
[1641235092607,2.234781,3755.7,3755.6,1.134327]
[1641235094612,2.00479,3755.7,3755.6,1.134327]
[1641235095013,2.234781,3755.7,3755.6,1.134327]
[1641235095616,2.00479,3755.7,3755.6,1.134327]
[1641235095815,2.234781,3755.7,3755.6,1.134327]
[1641235098418,2.79827102,3755.7,3755.6,1.134327]
[1641235103026,4.5910454,3755.7,3755.6,1.134327]
[1641235106330,2.79827102,3755.7,3755.6,1.134327]
[1641235109435,2.56828002,3755.7,3755.6,1.134327]
[1641235109636,2.79827102,3755.7,3755.6,1.134327]
[1641235112640,4.5910454,3755.7,3755.6,1.134327]
[1641235113443,2.79827102,3755.7,3755.6,1.134327]
[1641235113645,2.56828002,3755.7,3755.6,1.134327]
[1641235113843,2.79827102,3755.7,3755.6,1.134327]
[1641235115744,2.234781,3755.7,3755.6,1.134327]
[1641235116245,2.00479,3755.7,3755.6,1.134327]
[1641235116944,2.234781,3755.7,3755.6,1.134327]
[1641235120350,2.234781,3755.7,3755.1,1.20266519]
[1641235120651,2.234781,3755.7,3755.1,1.33082219]
[1641235120850,2.00479,3755.2,3755.1,1.33082219]
[1641235121051,2.00479,3755.2,3755.1,1.20266519]
[1641235121453,2.00479,3755.2,3754.6,20.5151]
[1641235121652,2.00479,3755.2,3752.9,6.91768358]
[1641235121951,2.00479,3755.2,3753.9,1.5]
[1641235122153,2.00479,3755.2,3754.2,1.5]
[1641235122352,3.33604835,3755.2,3754.5,1.5]
[1641235122552,2.00479,3755.2,3754.6,0.128157]
[1641235122752,2.00479,3755.2,3754.6,0.694757]
[1641235123153,1.19053571,3754.9,3754.6,2.18344058]
[1641235124557,1.19053571,3754.9,3754.8,1.48868358]
[1641235124857,1.75406029,3755.1,3754.8,1.48868358]
[1641235125056,1.75406029,3755.1,3754.9,0.80626672]
[1641235128465,1.19053571,3755.0,3754.9,0.80626672]
[1641235128864,0.75406029,3755.1,3754.9,0.80626672]
[1641235131069,0.56352458,3755.1,3754.9,0.80626672]
[1641235133467,2.00479,3755.2,3755.0,1.5]
[1641235133669,3.79059357,3755.7,3755.0,1.5]
[1641235133969,3.79059357,3755.7,3755.2,1.5]
[1641235134170,3.79059357,3755.7,3755.2,2.0752]
[1641235134472,3.79059357,3755.7,3755.4,1.5]
[1641235134670,3.79059357,3755.7,3755.5,1.11394438]
[1641235135273,2.00479,3755.7,3755.5,1.11394438]
[1641235137978,2.234781,3755.7,3755.5,0.98578738]
[1641235138177,2.00479,3755.7,3755.5,0.98578738]
[1641235138777,0.229991,3755.6,3755.5,2.48578738]
[1641235138980,2.52899,3755.7,3755.5,0.98578738]
[1641235139783,0.229991,3755.6,3755.5,0.98578738]
[1641235140182,2.52899,3755.7,3755.5,0.98578738]
[1641235140782,0.229991,3755.6,3755.5,0.98578738]
[1641235141683,1.56114302,3755.6,3755.5,0.98578738]
[1641235142685,3.34694659,3755.6,3755.5,0.98578738]
[1641235142886,4.84694659,3755.6,3754.5,2.00479]
[1641235143086,2.00479,3755.3,3754.5,2.00479]
[1641235143489,2.00479,3755.3,3754.5,3.50253603]
[1641235143788,2.00479,3755.3,3754.6,0.76440132]
[1641235145286,1.50012284,3755.2,3754.6,0.76440132]
[1641235145488,1.20009827,3754.9,3754.6,0.76440132]
[1641235145688,1.93989827,3754.9,3754.6,0.76440132]
[1641235145889,0.229991,3754.8,3754.6,0.76440132]
[1641235146687,1.43008927,3754.8,3754.6,0.76440132]
[1641235148390,1.43008927,3754.8,3754.1,17.9579]
[1641235148590,1.43008927,3754.8,3754.0,2.00479]
[1641235149191,2.00479,3754.7,3754.0,2.00479]
[1641235149589,2.00479,3754.7,3754.1,1.03439299]
[1641235150390,1.20009827,3754.3,3754.1,1.03439299]
[1641235150590,0.229991,3754.2,3754.1,1.03439299]
[1641235153195,1.43008927,3754.2,3754.1,1.03439299]
[1641235154294,1.99379288,3754.2,3754.1,1.03439299]
[1641235156099,0.79369461,3754.2,3754.1,1.03439299]
[1641235159403,26.04428658,3754.2,3754.1,1.03439299]
[1641235162005,26.04428658,3754.2,3754.0,2.00479]
[1641235162605,26.04428658,3754.2,3753.4,2.00479]
[1641235163509,2.00479,3753.9,3753.4,2.00479]
[1641235163707,2.51239,3753.9,3753.4,2.00479]
[1641235164011,1.33187892,3753.5,3752.9,1.49774603]
[1641235164209,1.20043643,3753.8,3752.9,1.49774603]
[1641235164407,11.43,3753.7,3752.9,1.49774603]
[1641235165218,1.33191085,3753.3,3752.9,1.49774603]
[1641235165421,2.00479,3753.0,3752.6,1.2116069]
[1641235165617,2.50849,3753.0,3752.6,1.2116069]
[1641235166819,1.33209537,3752.8,3752.6,1.2116069]
[1641235167018,0.229991,3752.7,3752.6,1.2116069]
[1641235167819,0.229991,3752.7,3752.6,0.48783858]
[1641235168023,0.229991,3752.7,3752.6,0.44583858]
[1641235168024,0.79369461,3752.7,3752.6,0.44583858]
[1641235169020,0.229991,3752.7,3752.6,0.44583858]
[1641235172025,0.229991,3752.7,3752.1,0.98061024]
[1641235172225,0.229991,3752.7,3752.1,1.10876724]
[1641235173426,2.00479,3752.6,3752.1,0.128157]
[1641235173626,2.00479,3752.6,3752.0,2.00479]
[1641235174028,2.00479,3752.6,3752.1,0.77540497]
[1641235175828,2.00479,3752.6,3752.1,1.52090497]
[1641235176228,2.00479,3752.6,3752.2,1.5]
[1641235176829,2.00479,3752.6,3752.3,0.128157]
[1641235177533,2.00479,3752.6,3752.4,1.5]
[1641235178431,2.00479,3752.6,3752.3,0.128157]
[1641235183237,2.00479,3753.0,3752.5,1.5]
[1641235183438,17.955,3753.7,3752.6,1.5]
[1641235183637,19.95979,3753.7,3752.8,2.00479]
[1641235183936,2.00479,3753.7,3752.8,2.00479]
[1641235185336,2.00479,3753.7,3752.9,0.75703589]
[1641235186737,1.5,3753.6,3752.9,0.75703589]
[1641235186937,0.5135,3753.6,3752.9,0.75703589]
[1641235187638,2.00479,3753.0,3752.9,0.75703589]
[1641235187839,2.234781,3753.0,3752.9,0.75703589]
[1641235188042,2.00479,3753.0,3752.9,0.75703589]
[1641235188641,2.234781,3753.0,3752.9,0.75703589]
[1641235191341,2.00479,3753.0,3752.9,0.75703589]
[1641235191541,2.234781,3753.0,3752.9,0.75703589]
[1641235191741,2.00479,3753.0,3752.9,0.75703589]
[1641235193344,2.00479,3753.7,3752.9,0.75703589]
[1641235196546,1.33193924,3753.3,3752.9,0.75703589]
[1641235196745,2.10853924,3753.3,3752.9,0.75703589]
[1641235197746,15.54332924,3753.3,3752.9,0.75703589]
[1641235197948,14.21139,3753.3,3752.9,0.75703589]
[1641235198148,2.78139,3753.3,3752.9,0.75703589]
[1641235199750,2.00479,3753.2,3752.9,0.75703589]
[1641235199951,0.229991,3753.1,3752.9,0.75703589]
[1641235204758,0.229991,3753.1,3752.3,0.98800403]
[1641235204759,13.49394027,3753.0,3752.3,0.98800403]
[1641235204955,1.5,3752.7,3752.3,0.98800403]
[1641235205156,1.5,3752.7,3751.9,1.48966204]
[1641235205358,1.5,3752.5,3751.9,1.48966204]
[1641235205556,2.3332,3752.5,3751.9,1.48966204]
[1641235205759,2.00479,3752.0,3751.9,1.48966204]
[1641235206164,2.00479,3752.0,3751.6,0.128157]
[1641235206464,2.00479,3752.0,3751.5,1.48966204]
[1641235207464,0.56394027,3751.9,3751.3,1.48966204]
[1641235208064,0.56394027,3751.9,3751.3,1.61781904]
[1641235208664,1.76275802,3751.9,3751.3,0.128157]
[1641235209770,1.76275802,3751.9,3751.4,1.17891804]
[1641235210367,30.63129157,3751.6,3751.4,1.17891804]
[1641235210567,0.229991,3751.5,3751.4,1.17891804]
[1641235210870,0.917091,3751.5,3751.4,1.17891804]
[1641235211067,0.6871,3751.5,3751.4,1.17891804]
[1641235212372,0.917091,3751.5,3751.4,1.17891804]
[1641235213172,0.917091,3751.5,3751.1,1.48966204]
[1641235213371,1.33285706,3751.2,3751.1,0.89596204]
[1641235213569,3.06284806,3751.2,3751.1,0.89596204]
[1641235213770,5.739571,3751.2,3751.1,0.89596204]
[1641235213971,5.739571,3751.2,3750.3,2.97932408]
[1641235214173,1.5,3751.0,3750.3,2.97932408]
[1641235214572,4.265927,3750.9,3750.3,2.97932408]
[1641235214773,1.5,3750.4,3749.6,2.97932408]
[1641235214983,2.326,3750.4,3749.6,2.97932408]
[1641235215179,4.266666,3750.3,3749.6,2.97932408]
[1641235215375,1.5,3750.2,3749.6,2.86982408]
[1641235215574,12.93,3750.2,3749.6,2.86982408]
[1641235215775,4.00958,3749.7,3749.6,2.86982408]
[1641235215975,4.239571,3749.7,3749.6,2.86982408]
[1641235216176,4.239571,3749.7,3749.0,1.07760377]
[1641235216378,4.239571,3749.7,3749.0,1.20576077]
[1641235216577,4.239571,3749.7,3749.0,1.07760377]
[1641235216876,1.33330311,3749.4,3748.5,4.36982408]
[1641235217077,1.97600311,3749.4,3748.5,4.36982408]
[1641235217376,1.97600311,3749.4,3748.5,1.5]
[1641235217776,2.00479,3748.8,3748.6,0.99338223]
[1641235218377,2.00479,3748.8,3748.6,1.12153923]
[1641235218576,1.33375124,3748.7,3748.1,3.7241551]
[1641235218777,1.5,3748.2,3748.1,3.7241551]
[1641235218976,2.14459347,3748.2,3746.3,32.3703]
[1641235219177,6.41336547,3748.2,3747.6,3.75733123]
[1641235219378,1.33401101,3747.7,3746.8,4.46898613]
[1641235219577,11.43,3747.5,3746.8,4.46898613]
[1641235219776,4.00958,3746.9,3746.8,4.46898613]
[1641235219979,4.968171,3746.9,3746.8,4.46898613]
[1641235220181,9.238424,3746.9,3746.8,4.46898613]
[1641235220378,4.73818,3746.9,3746.8,4.59714313]
[1641235220779,4.73818,3746.9,3746.8,0.128157]
[1641235220978,1.19881775,3747.2,3746.8,0.128157]
[1641235221378,1.19881775,3747.2,3747.1,1.5]
[1641235221578,1.19881775,3747.2,3746.8,0.928057]
[1641235221778,1.19881775,3747.2,3747.1,0.77218389]
[1641235222178,2.00479,3747.9,3747.1,0.77218389]
[1641235222379,2.00479,3747.9,3747.6,1.5]
[1641235222579,2.00479,3747.9,3747.8,1.5]
[1641235222784,2.00479,3748.2,3747.8,1.5]
[1641235222979,2.00479,3748.2,3747.9,1.5]
[1641235223179,2.00479,3748.2,3747.9,0.7637]
[1641235224181,2.00479,3748.2,3747.6,2.00479]
[1641235224381,2.00479,3748.8,3748.1,1.5]
[1641235224581,2.00479,3748.8,3748.2,0.128157]
[1641235224784,2.00479,3748.8,3748.2,1.26690706]
[1641235226382,1.33368009,3748.4,3748.2,1.13875006]
[1641235226582,0.229991,3748.3,3748.2,1.13875006]
[1641235226883,0.6519,3748.4,3748.2,1.26690706]
[1641235227483,0.229991,3748.3,3748.2,1.13875006]
[1641235227683,0.6519,3748.4,3748.2,1.13875006]
[1641235228483,0.229991,3748.3,3748.2,1.13875006]
[1641235231485,0.6519,3748.4,3748.2,1.13875006]
[1641235231685,1.33356271,3748.7,3748.2,1.13875006]
[1641235234489,2.00479,3748.8,3748.2,1.13875006]
[1641235235291,0.44704845,3748.1,3747.6,2.00479]
[1641235236792,0.44704845,3748.1,3747.7,0.91161296]
[1641235237592,0.44704845,3748.1,3747.8,0.128157]
[1641235238595,0.44704845,3748.1,3748.0,1.5]
[1641235238794,0.44704845,3748.1,3747.8,0.128157]
[1641235239997,2.00479,3748.8,3748.0,1.5]
[1641235240499,2.00479,3748.8,3747.8,0.128157]
[1641235240697,2.00479,3748.8,3747.9,1.5]
[1641235241099,2.00479,3748.8,3748.1,1.5]
[1641235241697,2.00479,3748.8,3747.9,1.5]
[1641235241898,2.00479,3748.8,3748.2,2.00479]
[1641235243301,2.00479,3749.0,3748.3,1.5]
[1641235243700,1.33327467,3749.9,3748.9,1.5]
[1641235243900,1.33318224,3749.8,3749.3,2.00479]
[1641235244101,1.33318224,3749.8,3749.4,0.128157]
[1641235244703,1.33318224,3749.8,3749.5,0.96249335]
[1641235244901,0.229991,3749.7,3749.5,0.96249335]
[1641235245502,1.33318224,3749.8,3749.5,0.96249335]
[1641235245705,0.229991,3749.7,3749.5,0.96249335]
[1641235248507,1.33333156,3749.6,3748.3,15.6991]
[1641235248708,2.264557,3749.9,3747.9,1.5]
[1641235249007,0.764557,3749.9,3747.9,1.5]
[1641235249209,0.764557,3749.9,3748.3,1.5]
[1641235249609,0.764557,3749.9,3748.2,2.97847008]
[1641235250110,1.33333156,3749.3,3748.8,2.00479]
[1641235250309,2.00479,3749.6,3748.9,0.96799149]
[1641235250510,1.33333156,3749.3,3748.9,0.96799149]
[1641235250711,1.33333156,3749.3,3748.9,0.83983449]
[1641235250912,2.00479,3749.6,3748.9,0.83983449]
[1641235251112,1.33333156,3749.3,3748.9,0.83983449]
[1641235251311,2.00479,3749.6,3748.9,0.83983449]
[1641235254414,2.00479,3749.6,3748.9,0.96799149]
[1641235254822,1.33328889,3749.5,3748.9,0.96799149]
[1641235257219,2.05498889,3749.5,3748.9,0.96799149]
[1641235257720,0.7217,3749.5,3748.9,0.96799149]
[1641235259322,2.00479,3749.6,3748.9,0.96799149]
[1641235260228,1.33320712,3749.7,3748.9,0.96799149]
[1641235260725,0.128157,3749.9,3748.9,0.96799149]
[1641235261123,0.128157,3749.9,3748.9,0.83983449]
[1641235261626,1.33327822,3749.5,3748.9,0.83983449]
[1641235261923,1.93037822,3749.5,3749.2,2.00479]
[1641235262123,0.229991,3749.4,3749.2,2.00479]
[1641235263729,1.33343823,3749.3,3749.2,2.00479]
[1641235263929,1.33343823,3749.3,3748.8,2.00479]
[1641235267034,1.33343823,3749.3,3748.9,1.3185043]
[1641235267435,2.00479,3749.6,3748.9,1.3185043]
[1641235268137,3.50479,3749.6,3748.9,1.3185043]
[1641235268539,2.00479,3749.6,3748.9,1.3185043]
[1641235271339,2.00479,3749.6,3748.8,2.00479]
[1641235271739,2.00479,3749.6,3748.9,1.17631823]
[1641235272338,3.50479,3749.6,3748.9,1.17631823]
[1641235272740,1.33348091,3749.0,3748.9,1.17631823]
[1641235272941,1.56347191,3749.0,3748.9,1.17631823]
[1641235273942,1.33348091,3749.0,3748.9,1.17631823]
[1641235274648,0.229991,3749.0,3748.9,1.17631823]
[1641235275344,0.128157,3749.3,3748.9,1.17631823]
[1641235275645,1.33340978,3749.1,3748.9,1.17631823]
[1641235275846,0.229991,3749.0,3748.9,1.17631823]
[1641235276546,1.33340978,3749.1,3748.9,1.17631823]
[1641235276747,0.229991,3749.0,3748.9,1.17631823]
[1641235277148,2.00479,3749.6,3748.9,1.17631823]
[1641235277448,2.132947,3749.6,3748.9,1.86101823]
[1641235278751,3.33176475,3749.6,3748.9,1.86101823]
[1641235279152,3.20360775,3749.6,3748.9,1.86101823]
[1641235279350,1.33329245,3749.5,3748.9,1.86101823]
[1641235280855,1.46291305,3749.0,3748.9,1.86101823]
[1641235282454,1.46291305,3749.1,3748.9,1.86101823]
[1641235282655,0.92931305,3749.1,3748.9,3.36101823]
[1641235282855,0.92931305,3749.1,3748.9,1.86101823]
[1641235283055,0.92931305,3749.1,3749.0,1.5]
[1641235283255,2.34921336,3749.4,3749.0,1.5]
[1641235283555,1.78470952,3749.6,3749.0,1.5]
[1641235283955,1.78470952,3749.6,3749.4,2.00479]
[1641235284155,0.229991,3749.5,3749.4,2.00479]
[1641235285759,0.79449484,3749.5,3749.4,2.00479]
[1641235285958,2.57920436,3749.5,3749.4,2.00479]
[1641235286761,0.79449484,3749.5,3749.4,2.00479]
[1641235287366,0.56450384,3749.5,3749.4,2.00479]
[1641235287762,0.79449484,3749.5,3749.4,2.00479]
[1641235287964,0.56450384,3749.5,3749.4,2.00479]
[1641235288163,0.69266084,3749.5,3749.4,2.00479]
[1641235288564,0.79449484,3749.5,3749.4,2.00479]
[1641235289964,2.57920436,3749.5,3749.4,2.00479]
[1641235291169,0.79449484,3749.5,3749.4,2.00479]
[1641235291368,0.56450384,3749.5,3749.4,2.00479]
[1641235291569,0.79449484,3749.5,3749.4,2.00479]
[1641235292168,0.229991,3749.5,3749.4,2.00479]
[1641235292869,1.78470952,3749.6,3749.4,2.00479]
[1641235293069,0.56450384,3749.5,3749.4,2.00479]
[1641235293369,0.79449484,3749.5,3749.4,2.00479]
[1641235293570,0.56450384,3749.5,3749.4,2.00479]
[1641235293970,1.78470952,3749.7,3749.4,2.00479]
[1641235294371,0.229991,3749.6,3749.4,2.00479]
[1641235295571,0.56450384,3749.5,3749.4,2.00479]
[1641235296674,2.29318364,3749.5,3749.4,2.00479]
[1641235297576,2.06319264,3749.5,3749.4,2.00479]
[1641235297873,2.29318364,3749.5,3749.4,2.00479]
[1641235298274,2.29318364,3749.5,3749.1,0.128157]
[1641235298474,2.29318364,3749.5,3749.2,2.00479]
[1641235298874,0.79449484,3749.5,3749.2,2.00479]
[1641235299978,2.06264069,3749.4,3749.2,2.00479]
[1641235300879,1.49813685,3749.3,3749.2,2.00479]
[1641235301079,1.72812785,3749.3,3749.2,2.00479]
[1641235301480,1.49813685,3749.3,3749.2,2.00479]
[1641235301980,2.29263169,3749.3,3749.2,2.00479]
[1641235302581,1.72812785,3749.3,3749.2,2.00479]
[1641235302981,1.72812785,3749.3,3749.2,2.132947]
[1641235303382,0.229991,3749.3,3749.2,2.132947]
[1641235303583,2.57920436,3749.3,3749.2,2.132947]
[1641235305086,0.79449484,3749.3,3749.2,2.132947]
[1641235305288,0.79449484,3749.3,3749.2,2.00479]
[1641235305887,2.29096238,3749.3,3749.2,2.00479]
[1641235307088,0.79449484,3749.3,3749.2,2.00479]
[1641235309493,2.57920436,3749.3,3749.2,2.00479]
[1641235313394,2.57920436,3749.3,3748.9,0.73541248]
[1641235313596,0.79449484,3749.3,3748.9,0.73541248]
[1641235313796,0.90341578,3749.2,3748.9,0.73541248]
[1641235314098,0.56450384,3749.3,3748.9,0.73541248]
[1641235314497,0.90342437,3749.2,3748.9,0.73541248]
[1641235314698,0.229991,3749.1,3748.9,0.73541248]
[1641235315500,0.56450384,3749.0,3748.9,0.73541248]
[1641235316701,0.79449484,3749.0,3748.9,0.73541248]
[1641235317104,0.56450384,3749.0,3748.9,0.73541248]
[1641235317803,0.79449484,3749.0,3748.9,0.73541248]
[1641235318204,0.56450384,3749.0,3748.9,0.73541248]
[1641235319406,0.56450384,3749.0,3748.9,0.86356948]
[1641235319708,0.56450384,3749.0,3748.9,2.36356948]
[1641235319908,0.56450384,3749.0,3748.9,0.86356948]
[1641235320509,1.4941788,3749.0,3748.9,2.86835948]
[1641235321108,0.3922,3749.7,3748.9,4.36835948]
[1641235321309,4.08995933,3750.4,3749.6,1.5]
[1641235321510,4.46177381,3750.9,3750.3,1.5]
[1641235321709,4.46177381,3750.9,3750.6,1.5]
[1641235321912,5.79452784,3751.3,3750.6,1.5]
[1641235322108,4.11243042,3750.8,3750.7,1.5]
[1641235322513,4.11243042,3750.8,3750.7,3.50479]
[1641235322709,4.11243042,3750.8,3750.7,2.00479]
[1641235323113,4.11243042,3750.8,3750.7,3.03087079]
[1641235323412,0.128157,3751.1,3750.7,3.03087079]
[1641235324510,3.33733269,3751.7,3750.7,3.03087079]
[1641235324912,2.00479,3751.7,3750.7,3.03087079]
[1641235325112,2.00479,3751.7,3750.7,5.18577079]
[1641235325311,0.15049113,3751.6,3750.7,5.18577079]
[1641235326514,0.15049113,3751.6,3751.2,2.00479]
[1641235327414,0.15049113,3751.6,3751.2,0.19911559]
[1641235327614,0.15049113,3751.6,3751.5,1.5]
[1641235327817,0.15049113,3752.0,3751.5,2.184857]
[1641235328017,0.15049113,3752.0,3751.8,1.5]
[1641235328417,2.00479,3752.1,3751.9,0.72323907]
[1641235329219,0.229991,3752.0,3751.9,0.72323907]
[1641235329418,2.00479,3752.1,3751.9,0.72323907]
[1641235330019,2.00479,3752.7,3751.9,0.72323907]
[1641235330217,0.128157,3752.6,3751.9,0.72323907]
[1641235330620,0.15045959,3752.5,3752.2,2.00479]
[1641235330926,0.229991,3752.4,3752.2,2.00479]
[1641235331722,2.00479,3752.7,3752.2,2.00479]
[1641235332520,17.9065,3753.1,3752.2,2.00479]
[1641235332720,18.97979,3753.4,3752.2,2.00479]
[1641235332922,2.00479,3753.4,3752.2,2.00479]
[1641235333322,0.15044318,3753.3,3752.2,2.00479]
[1641235334322,0.15044318,3753.3,3752.4,1.5]
[1641235334522,0.15044318,3753.3,3752.5,0.87590825]
[1641235336626,0.27860018,3753.3,3752.5,0.87590825]
[1641235337127,0.15044318,3753.2,3752.5,0.87590825]
[1641235337331,0.74534318,3753.2,3752.5,0.87590825]
[1641235338027,0.15044318,3753.1,3752.5,0.87590825]
[1641235339026,2.00479,3753.4,3752.5,0.87590825]
[1641235339627,0.15043009,3753.3,3752.5,0.87590825]
[1641235339827,2.00479,3753.4,3752.7,1.5]
[1641235340026,23.04965415,3754.1,3752.7,2.1392]
[1641235340226,19.634117,3754.2,3752.7,2.1392]
[1641235340427,19.634117,3754.2,3752.7,0.6392]
[1641235340627,2.15521181,3753.9,3753.0,2.00479]
[1641235340829,0.128157,3753.8,3753.0,2.00479]
[1641235341028,0.128157,3753.8,3753.1,1.06307449]
[1641235341426,0.27857881,3753.8,3753.1,1.06307449]
[1641235341830,0.15042181,3753.7,3753.1,1.06307449]
[1641235342730,0.77922181,3753.7,3753.1,1.06307449]
[1641235342929,0.77922181,3753.7,3753.1,0.93491749]
[1641235343529,0.6288,3753.7,3753.1,1.06307449]
[1641235345631,0.6288,3753.7,3753.1,0.93491749]
[1641235345833,0.15042101,3753.6,3753.1,0.93491749]
[1641235346431,0.15042101,3753.6,3752.2,18.90849]
[1641235346631,2.00479,3753.3,3752.2,18.90849]
[1641235346836,1.5,3752.9,3752.2,18.90849]
[1641235347033,0.128157,3752.8,3752.2,2.00479]
[1641235347231,0.128157,3752.8,3752.2,3.30116276]
[1641235348033,0.128157,3752.8,3752.2,3.42931976]
[1641235350140,1.33208118,3753.0,3752.2,3.42931976]
[1641235350338,2.00479,3753.3,3752.2,3.42931976]
[1641235354353,2.00479,3753.3,3752.8,1.5]
[1641235354551,3.3365625,3753.9,3752.8,4.10689]
[1641235354751,2.00479,3754.1,3752.9,1.06938103]
[1641235355152,2.00479,3754.1,3753.2,1.5]
[1641235355353,2.00479,3754.1,3753.3,0.128157]
[1641235356658,2.00479,3754.5,3753.6,2.00479]
[1641235356856,2.00479,3754.5,3753.7,0.96792619]
[1641235357056,0.15039666,3754.4,3753.7,0.96792619]
[1641235363366,1.77855366,3754.4,3753.7,0.96792619]
[1641235363567,2.57935366,3754.4,3752.7,35.6338]
[1641235363767,0.15039666,3754.3,3752.7,35.6338]
[1641235364669,0.15039666,3754.3,3753.0,0.66669339]
[1641235364868,2.00479,3753.8,3753.0,0.66669339]
[1641235365068,2.00479,3753.8,3753.1,0.128157]
[1641235367773,1.5,3753.5,3753.0,0.66669339]
[1641235367973,2.0176,3753.5,3753.0,0.66669339]
[1641235368172,0.128157,3753.4,3753.0,0.66669339]
[1641235368874,2.00479,3753.3,3753.0,0.66669339]
[1641235369072,0.229991,3753.2,3753.0,0.66669339]
[1641235371975,0.229991,3753.2,3753.0,0.02362705]
[1641235372874,3.33676827,3753.3,3753.0,0.02362705]
[1641235373076,2.00479,3753.3,3753.0,0.02362705]
[1641235373474,0.229991,3753.2,3753.0,0.02362705]
[1641235374075,2.00479,3753.3,3753.0,0.02362705]
[1641235374476,0.229991,3753.2,3753.0,0.02362705]
[1641235374881,2.00479,3753.3,3753.0,0.02362705]
[1641235375880,0.229991,3753.2,3753.0,0.02362705]
[1641235376079,2.00479,3753.3,3753.0,0.02362705]
[1641235376778,0.229991,3753.2,3753.0,0.02362705]
[1641235376979,2.00479,3753.3,3753.0,0.02362705]
[1641235378480,2.00479,3753.3,3753.0,0.82522705]
[1641235380782,0.229991,3753.2,3753.0,0.82522705]